fUSD/lending_fUSD_20250209
["ID","MTS","AMOUNT","RATE_DAILY","PERIOD"]
[352391775,1739073042316,-560.78,0.00010601,2]
[352391776,1739073042326,-322.06413823,0.00010601,2]
[352391777,1739073042335,-500.0,0.00010601,2]
[352391778,1739073042345,-646.07,0.00010601,2]
[352391779,1739073042354,-500.0,0.00010601,2]
[352391780,1739073042363,-500.0,0.00010601,2]
[352391781,1739073042373,-152.08008419,0.00010603,2]
[352391782,1739073042382,-500.0,0.00010603,2]
[352391783,1739073042391,-431.08190672,0.00010603,2]
[352391784,1739073042401,-500.0,0.00010603,2]
[352391785,1739073042410,-500.0,0.00010603,2]
[352391786,1739073042424,-500.0,0.00010603,2]
[352391787,1739073042433,-500.0,0.00010603,2]
[352391788,1739073042443,-500.0,0.00010603,2]
[352391789,1739073042452,-373.61031226,0.00010603,2]
[352391790,1739073042463,-500.0,0.00010603,2]
[352391791,1739073042472,-358.56229253,0.00010603,2]
[352391792,1739073042481,-500.0,0.00010603,2]
[352391793,1739073042491,-583.85,0.00010603,2]
[352391795,1739073042500,-500.0,0.00010603,2]
[352391797,1739073042510,-500.0,0.00010603,2]
[352391799,1739073042519,-500.0,0.00010603,2]
[352391801,1739073042529,-500.0,0.00010603,2]
[352391803,1739073042538,-500.0,0.00010603,2]
[352391805,1739073042547,-500.0,0.00010603,2]
[352391807,1739073042558,-500.0,0.00010603,2]
[352391809,1739073042567,-592.00567178,0.00010603,2]
[352391810,1739073042577,-500.0,0.00010603,2]
[352391813,1739073042587,-500.0,0.00010603,2]
[352391815,1739073042596,-500.0,0.00010603,2]
[352391816,1739073042606,-596.56,0.00010603,2]
[352391818,1739073042615,-760.19,0.00010603,2]
[352391820,1739073042625,-500.0,0.00010603,2]
[352391822,1739073042634,-2615.27,0.00010603,2]
[352391824,1739073042644,-500.0,0.00010603,2]
[352391826,1739073042653,-633.38,0.00010603,2]
[352391828,1739073042663,-500.0,0.00010603,2]
[352391830,1739073042673,-578.59,0.00010603,2]
[352391832,1739073042682,-500.0,0.00010603,2]
[352391834,1739073042691,-500.0,0.00010603,2]
[352391836,1739073042700,-749.29,0.00010603,2]
[352391838,1739073042709,-500.0,0.00010603,2]
[352391840,1739073042719,-500.0,0.00010603,2]
[352391842,1739073042728,-644.09,0.00010603,2]
[352391844,1739073042738,-500.0,0.00010603,2]
[352391846,1739073042747,-663.1298011,0.00010659,2]
[352391848,1739073042756,-587.0,0.0001069,2]
[352391850,1739073042765,-500.0,0.00010737,2]
[352391852,1739073042774,-500.0,0.00010737,2]
[352391854,1739073042784,-500.0,0.00010737,2]
[352391856,1739073042793,-500.0,0.00010737,2]
[352391858,1739073042803,-500.0,0.00010737,2]
[352391860,1739073042812,-500.0,0.00010737,2]
[352391862,1739073042821,-500.0,0.00010737,2]
[352391864,1739073042830,-500.0,0.00010737,2]
[352391866,1739073042839,-500.0,0.00010737,2]
[352391867,1739073042848,-500.0,0.00010737,2]
[352391869,1739073042857,-500.0,0.00010737,2]
[352391871,1739073042866,-500.0,0.00010737,2]
[352391873,1739073042875,-524.96,0.00010737,2]
[352391875,1739073042883,-500.0,0.00010737,2]
[352391877,1739073042892,-426.51454007,0.00010737,2]
[352391879,1739073042901,-500.0,0.00010737,2]
[352391881,1739073042911,-594.00735059,0.00010737,2]
[352391883,1739073042920,-217.04268989,0.00010737,2]
[352391885,1739073042938,-282.95731011,0.00010737,2]
[352391886,1739073042947,-519.95,0.00010737,2]
[352391887,1739073042956,-299.100622,0.00010737,2]
[352391888,1739073042965,-500.0,0.00010737,2]
[352391889,1739073042974,-345.33,0.00010737,2]
[352391890,1739073042983,-500.0,0.00010737,2]
[352391891,1739073042992,-500.0,0.00010737,2]
[352391892,1739073043001,-500.0,0.00010737,2]
[352391893,1739073043011,-500.0,0.00010738,2]
[352391894,1739073043020,-500.0,0.00010738,2]
[352391895,1739073043029,-537.53,0.00010738,2]
[352391896,1739073043039,-500.0,0.00010738,2]
[352391897,1739073043049,-500.0,0.00010738,2]
[352391898,1739073043059,-500.0,0.00010738,2]
[352391899,1739073043068,-289.812616,0.00010738,2]
[352391900,1739073043076,-737.2,0.00010738,2]
[352391901,1739073043085,-500.0,0.00010738,2]
[352391902,1739073043094,-500.0,0.00010738,2]
[352391903,1739073043103,-500.0,0.00010738,2]
[352391904,1739073043112,-500.0,0.00010738,2]
[352391905,1739073043121,-500.0,0.00010738,2]
[352391906,1739073043130,-500.0,0.00010738,2]
[352391907,1739073043139,-662.03,0.00010738,2]
[352391908,1739073043148,-1251.43,0.00010738,2]
[352391909,1739073043156,-500.0,0.00010738,2]
[352391910,1739073043166,-500.0,0.00010738,2]
[352391911,1739073043174,-765.63,0.00010738,2]
[352391912,1739073043184,-543.59,0.00010738,2]
[352391913,1739073043194,-560.78,0.00010738,2]
[352391914,1739073043203,-500.0,0.00010738,2]
[352391915,1739073043212,-646.07,0.00010738,2]
[352391916,1739073043222,-500.0,0.00010738,2]
[352391917,1739073043231,-500.0,0.00010738,2]
[352391918,1739073043241,-500.0,0.0001074,2]
[352391919,1739073043250,-500.0,0.0001074,2]
[352391920,1739073043259,-500.0,0.0001074,2]
[352391921,1739073043269,-500.0,0.0001074,2]
[352391922,1739073043279,-216.50222085,0.0001074,2]
[352391923,1739073043289,-500.0,0.0001074,2]
[352391924,1739073043298,-619.08342637,0.0001074,2]
[352391925,1739073043312,-500.0,0.0001074,2]
[352391926,1739073043321,-583.85,0.0001074,2]
[352391927,1739073043331,-500.0,0.0001074,2]
[352391928,1739073043340,-500.0,0.0001074,2]
[352391929,1739073043350,-500.0,0.0001074,2]
[352391930,1739073043360,-500.0,0.0001074,2]
[352391931,1739073043369,-551.77801844,0.0001074,2]
[352391932,1739073043378,-500.0,0.0001074,2]
[352391933,1739073043387,-500.0,0.0001074,2]
[352391934,1739073043397,-500.0,0.0001074,2]
[352391936,1739073043407,-500.0,0.0001074,2]
[352391938,1739073043418,-500.0,0.0001074,2]
[352391940,1739073043428,-596.56,0.0001074,2]
[352391942,1739073043437,-169.74805861,0.0001074,2]
[352391954,1739073043546,-500.0,0.00010326,2]
[352391955,1739073043558,-500.0,0.00010463,2]
[352391956,1739073043567,-590.44194139,0.0001074,2]
[352391958,1739073043577,-500.0,0.0001074,2]
[352391960,1739073043586,-2615.27,0.0001074,2]
[352391962,1739073043595,-500.0,0.0001074,2]
[352391963,1739073043605,-633.38,0.0001074,2]
[352391965,1739073043614,-500.0,0.0001074,2]
[352391966,1739073043623,-578.59,0.0001074,2]
[352391967,1739073043632,-500.0,0.0001074,2]
[352391968,1739073043641,-69.65364995,0.0001074,2]
[352391969,1739073043655,-430.34635005,0.0001074,2]
[352391970,1739073043665,-749.29,0.0001074,2]
[352391971,1739073043674,-500.0,0.0001074,2]
[352391972,1739073043682,-331.18884636,0.0001074,2]
[352391973,1739073043702,-500.0,0.000106,2]
[352391974,1739073043710,-40.08080873,0.0001074,2]
[352391975,1739073043721,-128.73034491,0.0001074,2]
[352391976,1739073043730,-644.09,0.0001074,2]
[352391977,1739073043740,-227.17965509,0.0001074,2]
[352391978,1739073043751,-272.82034491,0.0001074,2]
[352391979,1739073043760,-500.0,0.00010874,2]
[352391980,1739073043769,-500.0,0.00010874,2]
[352391981,1739073043778,-500.0,0.00010874,2]
[352391982,1739073043787,-500.0,0.00010874,2]
[352391983,1739073043797,-500.0,0.00010874,2]
[352391984,1739073043808,-47.54370328,0.00010874,2]
[352391993,1739073044216,-500.0,0.00010326,2]
[352391995,1739073044226,-500.0,0.00010463,2]
[352391996,1739073044235,-406.27353987,0.000106,2]
[352391997,1739073044247,-95.13646013,0.000106,2]
[352391998,1739073044257,-378.47934267,0.00010737,2]
[352392000,1739073044268,-121.52065733,0.00010737,2]
[352392002,1739073044278,-452.45629672,0.00010874,2]
[352392003,1739073044287,-500.0,0.00010874,2]
[352392004,1739073044296,-259.38106788,0.00010874,2]
[352392005,1739073044308,-240.61893212,0.00010874,2]
[352392006,1739073044317,-500.0,0.00010874,2]
[352392007,1739073044326,-291.72098145,0.00010874,2]
[352392008,1739073044335,-172.73881674,0.00010874,2]
[352392009,1739073044715,-268.98181998,0.0001019,2]
[352392010,1739073044730,-231.01818002,0.0001019,2]
[352392011,1739073044740,-500.0,0.0001019,2]
[352392012,1739073044750,-500.0,0.00010326,2]
[352392013,1739073044760,-500.0,0.00010327,2]
[352392014,1739073044769,-500.0,0.00010327,2]
[352392015,1739073044779,-500.0,0.00010463,2]
[352392016,1739073044788,-500.0,0.00010464,2]
[352392017,1739073044797,-500.0,0.00010464,2]
[352392018,1739073044809,-500.0,0.00010601,2]
[352392019,1739073044818,-500.0,0.00010601,2]
[352392020,1739073044827,-500.0,0.00010738,2]
[352392021,1739073044835,-327.26118326,0.00010874,2]
[352392022,1739073044845,-500.0,0.00010874,2]
[352392023,1739073044854,-524.96,0.00010874,2]
[352392024,1739073044863,-500.0,0.00010874,2]
[352392025,1739073044872,-500.0,0.00010874,2]
[352392026,1739073044881,-500.0,0.00010874,2]
[352392027,1739073044891,-116.76063672,0.00010874,2]
[352392031,1739073046037,-500.0,0.00010326,2]
[352392032,1739073046048,-533.93,0.000106,2]
[352392033,1739073046059,-500.0,0.00010738,2]
[352392034,1739073046069,-403.18936328,0.00010874,2]
[352392035,1739073046079,-299.100622,0.00010874,2]
[352392036,1739073046088,-177.67981177,0.00010874,2]
[352392040,1739073098913,-500.0,0.00010055,2]
[352392041,1739073098937,-500.0,0.00010055,2]
[352392200,1739074231952,-733.51,8.219e-05,2]
[352392201,1739074231963,-391.1454,8.836e-05,2]
[352392202,1739074231972,-198.58,9.519e-05,2]
[352392203,1739074231981,-228.2,9.605e-05,2]
[352392204,1739074231990,-1000.0,9.639e-05,2]
[352392205,1739074232000,-500.0,9.651e-05,2]
[352392206,1739074232009,-7000.0,0.0001,2]
[352392207,1739074232018,-501.0868142,0.0001,2]
[352392208,1739074232027,-379.05,0.00010055,2]
[352392209,1739074232036,-378.94,0.00010055,2]
[352392210,1739074232046,-87.42715251,0.00010055,2]
[352392211,1739074232215,-290.05284749,0.00010055,2]
[352392212,1739074232224,-368.67,0.00010055,2]
[352392213,1739074232234,-368.29,0.00010055,2]
[352392214,1739074232243,-390.85,0.00010137,2]
[352392215,1739074232252,-6797.0,0.00010304,2]
[352392216,1739074232262,-500.0,0.00010326,2]
[352392217,1739074232271,-500.0,0.00010326,2]
[352392218,1739074232280,-500.0,0.00010326,2]
[352392219,1739074232289,-500.0,0.00010326,2]
[352392220,1739074232298,-216.46175623,0.00010326,2]
[352392221,1739074232307,-500.0,0.00010326,2]
[352392222,1739074232317,-500.0,0.00010326,2]
[352392223,1739074232327,-500.0,0.00010326,2]
[352392224,1739074232338,-500.0,0.00010326,2]
[352392225,1739074232347,-500.0,0.00010326,2]
[352392226,1739074232356,-500.0,0.00010326,2]
[352392227,1739074232367,-500.0,0.00010326,2]
[352392228,1739074232375,-500.0,0.00010326,2]
[352392229,1739074232385,-500.0,0.00010326,2]
[352392230,1739074232395,-500.0,0.00010326,2]
[352392231,1739074232404,-500.0,0.00010326,2]
[352392232,1739074232413,-500.0,0.00010326,2]
[352392233,1739074232422,-500.0,0.00010326,2]
[352392234,1739074232431,-500.0,0.00010326,2]
[352392235,1739074232440,-500.0,0.00010326,2]
[352392236,1739074232450,-500.0,0.00010326,2]
[352392237,1739074232459,-500.0,0.00010326,2]
[352392238,1739074232467,-500.0,0.00010326,2]
[352392239,1739074232477,-500.0,0.00010326,2]
[352392240,1739074232486,-500.0,0.00010326,2]
[352392241,1739074232495,-500.0,0.00010326,2]
[352392242,1739074232504,-500.0,0.00010326,2]
[352392243,1739074232514,-216.92881007,0.00010326,2]
[352392244,1739074232523,-500.0,0.00010327,2]
[352392245,1739074232532,-500.0,0.00010327,2]
[352392246,1739074232541,-500.0,0.00010327,2]
[352392247,1739074232551,-500.0,0.00010327,2]
[352392248,1739074232560,-500.0,0.00010327,2]
[352392249,1739074232569,-500.0,0.00010327,2]
[352392250,1739074232578,-500.0,0.00010327,2]
[352392251,1739074232587,-500.0,0.00010327,2]
[352392252,1739074232597,-500.0,0.00010327,2]
[352392253,1739074232607,-500.0,0.00010327,2]
[352392254,1739074232616,-133194.80876258,0.00010327,2]
[352392255,1739074232626,-733.51,0.00010451,2]
[352392256,1739074232635,-500.0,0.00010461,2]
[352392257,1739074232644,-500.0,0.00010461,2]
[352392258,1739074232653,-500.0,0.00010461,2]
[352392259,1739074232662,-500.0,0.00010461,2]
[352392260,1739074232672,-500.0,0.00010461,2]
[352392262,1739074232681,-236.419234,0.00010461,2]
[352392264,1739074232690,-500.0,0.00010461,2]
[352392266,1739074232699,-500.0,0.00010461,2]
[352392268,1739074232708,-1005.66,0.00010461,2]
[352392270,1739074232718,-500.0,0.00010461,2]
[352392272,1739074232728,-500.0,0.00010461,2]
[352392273,1739074232737,-500.0,0.00010461,2]
[352392274,1739074232746,-500.0,0.00010461,2]
[352392275,1739074232755,-500.0,0.00010461,2]
[352392277,1739074232766,-523.37,0.00010461,2]
[352392279,1739074232777,-500.0,0.00010461,2]
[352392281,1739074232786,-1142.3,0.00010461,2]
[352392283,1739074232795,-500.0,0.00010461,2]
[352392285,1739074232804,-500.0,0.00010461,2]
[352392287,1739074232814,-500.0,0.00010461,2]
[352392289,1739074232823,-500.0,0.00010461,2]
[352392291,1739074232831,-500.0,0.00010461,2]
[352392293,1739074232842,-500.0,0.00010461,2]
[352392295,1739074232852,-555.99,0.00010461,2]
[352392297,1739074232861,-608.71,0.00010461,2]
[352392299,1739074232870,-500.0,0.00010461,2]
[352392301,1739074232878,-500.0,0.00010461,2]
[352392303,1739074232887,-500.0,0.00010461,2]
[352392305,1739074232896,-500.0,0.00010461,2]
[352392307,1739074232905,-565.74,0.00010461,2]
[352392309,1739074232915,-500.0,0.00010461,2]
[352392310,1739074232923,-543.18,0.00010461,2]
[352392313,1739074232934,-500.0,0.00010461,2]
[352392315,1739074232943,-500.0,0.00010461,2]
[352392317,1739074232952,-500.0,0.00010461,2]
[352392319,1739074232961,-500.0,0.00010461,2]
[352392321,1739074232970,-698.49,0.00010461,2]
[352392322,1739074232979,-500.0,0.00010461,2]
[352392323,1739074232988,-500.0,0.00010461,2]
[352392324,1739074232997,-500.0,0.00010461,2]
[352392325,1739074233006,-560.98,0.00010461,2]
[352392326,1739074233016,-500.0,0.00010461,2]
[352392327,1739074233025,-603.71,0.00010461,2]
[352392328,1739074233035,-500.0,0.00010461,2]
[352392329,1739074233044,-500.0,0.00010461,2]
[352392330,1739074233053,-952.7,0.00010461,2]
[352392331,1739074233063,-500.0,0.00010461,2]
[352392332,1739074233072,-500.0,0.00010461,2]
[352392333,1739074233081,-289.822796,0.00010461,2]
[352392334,1739074233091,-1773.29,0.00010461,2]
[352392335,1739074233103,-500.0,0.00010461,2]
[352392336,1739074233112,-444.51911915,0.00010461,2]
[352392337,1739074233122,-607.82,0.00010461,2]
[352392338,1739074233131,-500.0,0.00010461,2]
[352392339,1739074233141,-500.0,0.00010461,2]
[352392340,1739074233151,-500.0,0.00010461,2]
[352392341,1739074233161,-500.0,0.00010461,2]
[352392342,1739074233170,-500.0,0.00010461,2]
[352392343,1739074233180,-864.61,0.00010461,2]
[352392344,1739074233189,-308.5840773,0.00010462,2]
[352392345,1739074233199,-500.0,0.00010462,2]
[352392346,1739074233208,-500.0,0.00010462,2]
[352392347,1739074233218,-500.0,0.00010462,2]
[352392348,1739074233227,-500.0,0.00010462,2]
[352392349,1739074233236,-571.79,0.00010462,2]
[352392350,1739074233246,-500.0,0.00010462,2]
[352392351,1739074233255,-500.0,0.00010462,2]
[352392352,1739074233264,-500.0,0.00010462,2]
[352392353,1739074233274,-500.0,0.00010462,2]
[352392354,1739074233283,-500.0,0.00010462,2]
[352392355,1739074233292,-500.0,0.00010462,2]
[352392356,1739074233302,-500.0,0.00010462,2]
[352392357,1739074233311,-567.18,0.00010462,2]
[352392358,1739074233320,-500.0,0.00010462,2]
[352392359,1739074233329,-500.0,0.00010462,2]
[352392360,1739074233339,-109.21754025,0.00010462,2]
[352392361,1739074233381,-437.58245975,0.00010462,2]
[352392362,1739074233391,-500.0,0.00010462,2]
[352392363,1739074233401,-78.4187358,0.00010462,2]
[352392364,1739074233419,-421.5812642,0.00010462,2]
[352392365,1739074233429,-380.93892626,0.00010462,2]
[352392372,1739074238052,-500.0,0.00010461,2]
[352392373,1739074238063,-119.06107374,0.00010462,2]
[352392374,1739074238072,-500.0,0.00010462,2]
[352392375,1739074238082,-500.0,0.00010462,2]
[352392376,1739074238091,-500.0,0.00010462,2]
[352392377,1739074238101,-500.0,0.00010462,2]
[352392378,1739074238110,-500.0,0.00010462,2]
[352392379,1739074238119,-500.0,0.00010462,2]
[352392380,1739074238129,-500.0,0.00010462,2]
[352392381,1739074238139,-500.0,0.00010462,2]
[352392382,1739074238149,-500.0,0.00010462,2]
[352392383,1739074238162,-500.0,0.00010462,2]
[352392384,1739074238171,-500.0,0.00010462,2]
[352392385,1739074238182,-500.0,0.00010462,2]
[352392386,1739074238192,-500.0,0.00010462,2]
[352392387,1739074238201,-626.37,0.00010462,2]
[352392388,1739074238211,-500.0,0.00010462,2]
[352392389,1739074238222,-540.8991236,0.00010462,2]
[352392390,1739074238232,-500.0,0.00010462,2]
[352392391,1739074238243,-500.0,0.00010462,2]
[352392392,1739074238251,-501.0,0.00010462,2]
[352392393,1739074238261,-500.0,0.00010462,2]
[352392394,1739074238271,-500.0,0.00010462,2]
[352392395,1739074238281,-618.11,0.00010462,2]
[352392396,1739074238291,-500.0,0.00010462,2]
[352392397,1739074238299,-500.0,0.00010462,2]
[352392398,1739074238308,-181.59335957,0.00010462,2]
[352392399,1739074238317,-500.0,0.00010462,2]
[352392400,1739074238327,-500.0,0.00010462,2]
[352392402,1739074238337,-500.0,0.00010462,2]
[352392403,1739074238347,-500.0,0.00010462,2]
[352392405,1739074238357,-500.0,0.00010462,2]
[352392407,1739074238366,-500.0,0.00010462,2]
[352392409,1739074238376,-505.05014949,0.00010462,2]
[352392411,1739074238387,-500.0,0.00010462,2]
[352392412,1739074238395,-500.0,0.00010462,2]
[352392413,1739074238404,-374.91822904,0.00010462,2]
[352392414,1739074238413,-500.0,0.00010462,2]
[352392415,1739074238422,-646.8,0.00010462,2]
[352392416,1739074238432,-500.0,0.00010462,2]
[352392417,1739074238448,-1037.98,0.00010462,2]
[352392418,1739074238461,-500.0,0.00010462,2]
[352392419,1739074238471,-730.46,0.00010462,2]
[352392420,1739074238480,-473.82088578,0.00010462,2]
[352392421,1739074238489,-500.0,0.00010462,2]
[352392422,1739074238498,-500.0,0.00010462,2]
[352392423,1739074238508,-500.0,0.00010462,2]
[352392424,1739074238517,-756.98,0.00010462,2]
[352392426,1739074238526,-500.0,0.00010462,2]
[352392427,1739074238536,-500.0,0.00010462,2]
[352392429,1739074238545,-500.0,0.00010462,2]
[352392431,1739074238555,-500.0,0.00010462,2]
[352392433,1739074238564,-500.0,0.00010462,2]
[352392435,1739074238573,-520.04274074,0.00010462,2]
[352392437,1739074238582,-580.73,0.00010462,2]
[352392439,1739074238592,-500.0,0.00010462,2]
[352392441,1739074238602,-475.58421024,0.00010462,2]
[352392444,1739074238618,-24.41578976,0.00010462,2]
[352392446,1739074238627,-500.0,0.00010462,2]
[352392448,1739074238636,-500.0,0.00010462,2]
[352392450,1739074238645,-500.0,0.00010462,2]
[352392452,1739074238655,-486.69581965,0.00010462,2]
[352392454,1739074238669,-13.30418035,0.00010462,2]
[352392456,1739074238682,-552.13,0.00010462,2]
[352392458,1739074238691,-187.6650342,0.00010462,2]
[352392460,1739074238703,-312.3349658,0.00010462,2]
[352392462,1739074238712,-873.34,0.00010462,2]
[352392464,1739074238721,-500.0,0.00010462,2]
[352392466,1739074238731,-500.0,0.00010462,2]
[352392468,1739074238741,-500.0,0.00010462,2]
[352392470,1739074238750,-500.0,0.00010462,2]
[352392472,1739074238759,-500.0,0.00010462,2]
[352392474,1739074238771,-500.0,0.00010462,2]
[352392476,1739074238784,-500.0,0.00010462,2]
[352392478,1739074238793,-500.0,0.00010462,2]
[352392480,1739074238803,-507.91,0.00010462,2]
[352392482,1739074238812,-500.0,0.00010462,2]
[352392484,1739074238821,-528.7,0.00010462,2]
[352392486,1739074238830,-601.99,0.00010462,2]
[352392488,1739074238839,-533.81,0.00010462,2]
[352392490,1739074238851,-500.0,0.00010462,2]
[352392492,1739074238861,-574.97,0.00010462,2]
[352392494,1739074238871,-500.0,0.00010462,2]
[352392496,1739074238880,-500.0,0.00010462,2]
[352392498,1739074238889,-500.0,0.00010462,2]
[352392500,1739074238899,-919.39,0.00010462,2]
[352392502,1739074238908,-500.0,0.00010462,2]
[352392504,1739074238918,-1222.59,0.00010462,2]
[352392506,1739074238927,-2162.63,0.00010462,2]
[352392508,1739074238936,-500.0,0.00010462,2]
[352392510,1739074238946,-500.0,0.00010462,2]
[352392512,1739074238955,-500.0,0.00010462,2]
[352392514,1739074238964,-500.0,0.00010462,2]
[352392516,1739074238973,-523.76,0.00010462,2]
[352392518,1739074238983,-500.0,0.00010462,2]
[352392520,1739074238992,-878.99,0.00010462,2]
[352392522,1739074239001,-500.0,0.00010463,2]
[352392524,1739074239011,-500.0,0.00010463,2]
[352392526,1739074239025,-500.0,0.00010463,2]
[352392528,1739074239034,-320.08,0.00010463,2]
[352392530,1739074239044,-497.71,0.00010463,2]
[352392532,1739074239053,-302.1,0.00010463,2]
[352392534,1739074239062,-477.61,0.00010463,2]
[352392536,1739074239072,-361.82,0.00010463,2]
[352392537,1739074239081,-500.0,0.00010463,2]
[352392540,1739074239091,-500.0,0.00010463,2]
[352392541,1739074239100,-292.25640336,0.00010463,2]
[352392543,1739074239109,-500.0,0.00010463,2]
[352392545,1739074239119,-456.25993624,0.00010463,2]
[352392548,1739074239130,-43.74006376,0.00010463,2]
[352392550,1739074239140,-500.0,0.00010463,2]
[352392552,1739074239149,-500.0,0.00010463,2]
[352392554,1739074239158,-256.25993624,0.00010463,2]
[352392556,1739074239169,-243.74006376,0.00010463,2]
[352392558,1739074239178,-500.0,0.00010463,2]
[352392560,1739074239188,-500.0,0.00010463,2]
[352392562,1739074239197,-500.0,0.00010463,2]
[352392564,1739074239206,-500.0,0.00010463,2]
[352392566,1739074239216,-500.0,0.00010463,2]
[352392568,1739074239225,-378.98050525,0.00010463,2]
[352392570,1739074239236,-121.01949475,0.00010463,2]
[352392572,1739074239245,-1115.17,0.00010475,2]
[352392574,1739074239254,-150.85,0.00010555,2]
[352392576,1739074239264,-150.34,0.00010555,2]
[352392578,1739074239273,-500.0,0.00010598,2]
[352392580,1739074239283,-500.0,0.00010598,2]
[352392582,1739074239292,-500.0,0.00010598,2]
[352392584,1739074239301,-500.0,0.00010598,2]
[352392586,1739074239311,-236.419234,0.00010598,2]
[352392588,1739074239320,-500.0,0.00010598,2]
[352392590,1739074239330,-500.0,0.00010598,2]
[352392592,1739074239339,-167.29180097,0.00010598,2]
[352392594,1739074239351,-838.36819903,0.00010598,2]
[352392596,1739074239360,-500.0,0.00010598,2]
[352392598,1739074239370,-500.0,0.00010598,2]
[352392600,1739074239379,-500.0,0.00010598,2]
[352392602,1739074239390,-500.0,0.00010598,2]
[352392604,1739074239399,-500.0,0.00010598,2]
[352392606,1739074239408,-523.37,0.00010598,2]
[352392608,1739074239418,-500.0,0.00010598,2]
[352392610,1739074239427,-1142.3,0.00010598,2]
[352392612,1739074239436,-500.0,0.00010598,2]
[352392614,1739074239446,-500.0,0.00010598,2]
[352392616,1739074239455,-500.0,0.00010598,2]
[352392618,1739074239465,-500.0,0.00010598,2]
[352392620,1739074239474,-500.0,0.00010598,2]
[352392622,1739074239484,-500.0,0.00010598,2]
[352392624,1739074239494,-555.99,0.00010598,2]
[352392626,1739074239503,-608.71,0.00010598,2]
[352392628,1739074239511,-500.0,0.00010598,2]
[352392630,1739074239520,-500.0,0.00010598,2]
[352392632,1739074239530,-500.0,0.00010598,2]
[352392634,1739074239539,-500.0,0.00010598,2]
[352392636,1739074239549,-565.74,0.00010598,2]
[352392638,1739074239559,-500.0,0.00010598,2]
[352392640,1739074239569,-543.18,0.00010598,2]
[352392641,1739074239578,-500.0,0.00010598,2]
[352392643,1739074239588,-500.0,0.00010598,2]
[352392644,1739074239597,-500.0,0.00010598,2]
[352392645,1739074239607,-500.0,0.00010598,2]
[352392646,1739074239616,-698.49,0.00010598,2]
[352392647,1739074239627,-500.0,0.00010598,2]
[352392648,1739074239636,-500.0,0.00010598,2]
[352392650,1739074239646,-588.04653127,0.00010598,2]
[352392652,1739074239655,-560.98,0.00010598,2]
[352392654,1739074239665,-500.0,0.00010598,2]
[352392656,1739074239675,-603.71,0.00010598,2]
[352392657,1739074239685,-500.0,0.00010598,2]
[352392658,1739074239694,-952.7,0.00010598,2]
[352392659,1739074239703,-500.0,0.00010598,2]
[352392660,1739074239713,-500.0,0.00010598,2]
[352392661,1739074239722,-289.822796,0.00010598,2]
[352392662,1739074239731,-1773.29,0.00010598,2]
[352392663,1739074239740,-500.0,0.00010598,2]
[352392664,1739074239749,-607.82,0.00010598,2]
[352392665,1739074239759,-500.0,0.00010598,2]
[352392666,1739074239772,-500.0,0.00010598,2]